bitfinex/quotes_SOLUSD_20241216
["timestamp","ask_amount","ask_price","bid_price","bid_amount"]
[1734325820759,20.0,221.13,221.05,31.56238456]
[1734325821290,1.5752,221.19,221.07,23.776884]
[1734325821500,1.5752,221.19,221.12,7.78550056]
[1734325821781,6.3316,221.2,221.15,23.776884]
[1734325821985,6.3316,221.2,221.15,31.56238456]
[1734325822170,0.84760129,221.23,221.15,31.56238456]
[1734325822368,8.0145,221.25,221.17,23.776884]
[1734325824361,8.0145,221.25,221.17,31.56238456]
[1734325825179,8.0145,221.25,221.19,23.776884]
[1734325826486,7.9496,221.3,221.2,7.78550056]
[1734325826781,0.84739608,221.29,221.21,23.776884]
[1734325828060,8.79699835,221.3,221.21,23.776884]
[1734325829076,7.9496,221.3,221.21,23.776884]
[1734325829259,7.9496,221.3,221.23,7.78550056]
[1734325829460,7.9496,221.3,221.24,23.776884]
[1734325831694,0.84734833,221.29,221.14,20.02014829]
[1734325831864,20.0,221.27,221.14,20.02014829]
[1734325832067,0.84754934,221.26,221.16,7.78550056]
[1734325832266,20.0,221.27,221.18,7.78550056]
[1734325832484,20.0,221.27,221.19,7.78550056]
[1734325832666,0.84737932,221.29,221.19,7.78550056]
[1734325832874,0.84737932,221.29,221.18,7.78550056]
[1734325833100,0.84737932,221.29,221.16,7.78550056]
[1734325833101,20.0,221.27,221.16,7.78550056]
[1734325833297,20.0,221.27,221.14,20.02014829]
[1734325833298,0.84757657,221.26,221.14,27.80564885]
[1734325833480,0.84757657,221.26,221.16,7.78550056]
[1734325834202,0.84757657,221.26,221.17,7.78550056]
[1734325834371,20.0,221.27,221.17,7.78550056]
[1734325834571,20.0,221.27,221.18,31.56238456]
[1734325834778,0.84747279,221.26,221.15,7.78550056]
[1734325835092,0.84747279,221.26,221.17,23.776884]
[1734325838181,20.0,221.27,221.17,31.56238456]
[1734325838385,20.0,221.27,221.18,7.78550056]
[1734325838577,0.84744303,221.29,221.19,23.776884]
[1734325839787,8.79699009,221.3,221.19,23.776884]
[1734325840701,8.79699009,221.3,221.18,7.78550056]
[1734325840702,11.2973,221.29,221.14,20.02014829]
[1734325840873,20.0,221.26,221.15,31.56238456]
[1734325841902,0.84752797,221.25,221.15,23.776884]
[1734325842097,0.84752797,221.25,221.15,31.56238456]
[1734325842572,0.84752797,221.25,221.15,23.776884]
[1734325842573,20.0,221.23,221.15,23.776884]
[1734325842769,7.24957657,221.22,221.15,23.776884]
[1734325843209,20.0,221.19,221.09,7.78550056]
[1734325843420,20.0,221.19,221.08,7.78550056]
[1734325843698,20.0,221.19,221.09,7.78550056]
[1734325844471,20.0,221.17,221.07,7.78550056]
[1734325845677,20.0,221.17,221.08,23.776884]
[1734325846801,20.0,221.17,221.09,7.78550056]
[1734325847103,20.0,221.17,221.08,23.776884]
[1734325848195,20.0,221.17,221.09,7.78550056]
[1734325848583,20.0,221.17,221.1,23.776884]
[1734325848899,1.5612,221.21,221.12,23.776884]
[1734325849077,2.40890623,221.21,221.12,23.776884]
[1734325849273,13.71040623,221.21,221.12,23.776884]
[1734325849474,12.8627,221.21,221.1,31.56238456]
[1734325850202,12.8627,221.21,221.12,23.776884]
[1734325852596,0.84771138,221.2,221.1,23.776884]
[1734325853371,13.71045979,221.21,221.1,23.776884]
[1734325856303,13.71045979,221.21,221.09,23.776884]
[1734325856703,13.71045979,221.21,221.07,23.776884]
[1734325857307,13.71045979,221.21,221.07,31.56238456]
[1734325859505,13.71045979,221.21,221.07,23.776884]
[1734325860805,20.0,221.18,221.07,23.776884]
[1734325861115,20.0,221.13,221.01,7.78550056]
[1734325861274,0.84807619,221.12,221.0,7.78550056]
[1734325861483,0.84807619,221.12,220.98,7.78550056]
[1734325861811,0.84807619,221.12,220.96,11.3142]
[1734325861812,6.4751,221.11,220.96,7.78550056]
[1734325862013,20.0,221.08,220.94,14.84751755]
[1734325862317,0.84832485,221.07,220.94,7.06201699]
[1734325862606,6.4751,221.06,220.91,9.31870056]
[1734325862785,0.84846712,221.05,220.91,7.78550056]
[1734325862977,0.84846712,221.05,220.92,7.78550056]
[1734325863179,1.5128,221.02,220.9,7.78550056]
[1734325863398,20.84852307,221.01,220.91,7.78550056]
[1734325864101,20.84852307,221.01,220.91,12.16190542]
[1734325864782,20.0,221.01,220.91,12.16190542]
[1734325865293,20.0,221.01,220.92,23.776884]
[1734325865921,0.84846998,221.0,220.92,23.776884]
[1734325866087,0.84846998,221.0,220.9,12.16190542]
[1734325866088,0.84846998,221.0,220.9,23.776884]
[1734325866712,0.84846998,221.0,220.89,23.776884]
[1734325867010,20.84853679,221.01,220.9,12.16190542]
[1734325867218,2.36128967,221.02,220.91,35.93878942]
[1734325867426,1.5128,221.02,220.95,23.776884]
[1734325867802,1.5128,221.02,220.94,23.776884]
[1734325869438,22.36122,221.02,220.9,12.16190542]
[1734325869730,22.36122,221.02,220.91,23.776884]
[1734325872036,33.67252,221.02,220.9,12.16190542]
[1734325872206,13.67252,221.02,220.89,12.16190542]
[1734325872629,13.67252,221.02,220.88,32.16190542]
[1734325872831,13.67252,221.02,220.91,12.16190542]
[1734325873518,13.67252,221.02,220.91,23.776884]
[1734325875238,2.36122,221.02,220.93,12.16190542]
[1734325875419,1.5128,221.02,220.95,23.776884]
[1734325877634,1.5128,221.02,220.93,23.776884]
[1734325877824,2.36124287,221.02,220.93,23.776884]
[1734325879426,2.36124287,221.02,220.89,23.776884]
[1734325881735,2.36124287,221.02,220.89,35.93878942]
[1734325882616,2.36124287,221.02,220.91,12.16190542]
[1734325882837,2.36124287,221.02,220.88,20.0]
[1734325882838,2.36130598,221.02,220.93,35.93878942]
[1734325883138,20.0,221.01,220.93,23.776884]
[1734325883327,0.84851008,221.0,220.9,12.16190542]
[1734325883528,0.84851008,221.0,220.89,35.93878942]
[1734325886043,0.84851008,221.0,220.89,31.56205211]
[1734325886246,6.3078,220.99,220.89,23.776884]
[1734325886439,0.84863522,220.98,220.89,23.776884]
[1734325887641,0.84863522,220.98,220.89,31.56205211]
[1734325888025,6.3078,220.99,220.89,31.56205211]
[1734325888223,0.84855866,220.98,220.89,31.56205211]
[1734325890849,0.84860211,220.97,220.89,31.56205211]
[1734325891231,0.84862584,220.98,220.89,31.56205211]
[1734325893336,0.84862584,220.98,220.89,23.776884]
[1734325893739,20.0,220.96,220.89,23.776884]
[1734325901738,20.0,220.95,220.83,5.08788515]
[1734325902072,26.3293,220.92,220.82,7.78516811]
[1734325903364,27.17813023,220.92,220.83,31.56205211]
[1734325903546,1.5663,220.94,220.88,7.78516811]
[1734325903738,1.5663,220.94,220.89,23.776884]
[1734325903933,1.5663,220.94,220.89,7.78516811]
[1734325904138,6.3293,220.97,220.89,7.78516811]
[1734325904339,6.3293,220.97,220.88,7.78516811]
[1734325904543,6.3293,220.97,220.89,23.776884]
[1734325905065,6.3293,220.97,220.89,31.56205211]
[1734325906054,6.3293,220.97,220.91,23.776884]
[1734325906443,6.3293,220.97,220.89,23.776884]
[1734325907640,6.3293,220.97,220.89,31.56205211]
[1734325915466,0.84854418,220.96,220.89,23.776884]
[1734325915655,0.84854418,220.96,220.88,23.776884]
[1734325920471,0.84854418,220.96,220.88,7.78516811]
[1734325920654,0.84854418,220.96,220.89,23.776884]
[1734325922477,0.84854418,220.96,220.88,23.776884]
[1734325923043,7.17796215,220.97,220.88,23.776884]
[1734325923264,6.3293,220.97,220.91,31.56205211]
[1734325923440,6.3293,220.97,220.92,7.78516811]
[1734325923643,1.6146,220.99,220.92,7.78516811]
[1734325923644,21.6146,220.99,220.92,7.78516811]
[1734325924178,1.6146,220.99,220.92,7.78516811]
[1734325924741,1.6146,220.99,220.94,23.776884]
[1734325924943,17.7195,221.02,220.94,23.776884]
[1734325925379,6.4079,221.02,220.95,7.78516811]
[1734325925583,6.4079,221.02,220.89,11.3178]
[1734325925584,1.6321,221.04,220.97,31.56205211]
[1734325926076,1.6321,221.04,220.97,23.776884]
[1734325927576,6.4079,221.07,220.99,23.776884]
[1734325928076,6.4079,221.07,220.99,31.56205211]
[1734325929881,6.4079,221.07,220.99,23.776884]
[1734325931977,0.84823252,221.06,220.99,23.776884]
[1734325932157,0.84823252,221.06,220.96,31.56205211]
[1734325934456,6.4079,221.07,220.99,7.78516811]
[1734325934679,6.4079,221.07,221.0,23.776884]
[1734325935595,6.4079,221.07,220.99,23.776884]
[1734325936158,0.84824306,221.06,220.96,31.56205211]
[1734325937081,7.25619815,221.07,220.96,31.56205211]
[1734325937251,6.4079,221.07,220.97,7.78516811]
[1734325937653,6.4079,221.07,220.98,23.776884]
[1734325937854,6.4079,221.07,220.98,31.56205211]
[1734325939755,1.6398,221.09,221.01,23.776884]
[1734325944289,6.1528,221.12,221.05,23.776884]
[1734325944587,1.6229,221.14,221.07,31.56205211]
[1734325944797,1.6229,221.14,221.09,23.776884]
[1734325945083,1.6229,221.14,221.09,31.56205211]
[1734325945256,1.6229,221.14,221.09,23.776884]
[1734325945457,1.6229,221.14,221.08,23.776884]
[1734325946384,1.6229,221.14,221.08,31.56205211]
[1734325948463,8.0894,221.18,221.08,31.56205211]
[1734325949671,0.84781517,221.17,221.08,31.56205211]
[1734325949863,0.84781517,221.17,221.08,23.776884]
[1734325951187,8.0894,221.18,221.08,23.776884]
[1734325951687,0.8478415,221.17,221.08,23.776884]
[1734325952393,20.0,221.15,221.03,7.78516811]
[1734325952592,20.0,221.15,220.97,5.08788515]
[1734325952593,6.4633,221.12,221.0,7.78516811]
[1734325952779,0.84816476,221.11,221.0,7.78516811]
[1734325954093,0.84816476,221.11,221.01,23.776884]
[1734325954302,0.84816476,221.11,221.02,7.78516811]
[1734325954678,0.84816476,221.11,221.01,23.776884]
[1734325954977,1.5921,221.1,221.01,23.776884]
[1734325955197,0.84816468,221.09,221.01,23.776884]
[1734325955598,0.84816468,221.09,220.99,23.776884]
[1734325956602,0.84816468,221.09,221.0,23.776884]
[1734325957301,20.0,221.07,220.97,31.56205211]
[1734325957498,0.84828454,221.06,220.97,31.56205211]
[1734325957800,0.8482618,221.06,220.98,23.776884]
[1734325958002,20.0,221.07,220.98,23.776884]
[1734325958172,0.84827499,221.09,220.98,31.56205211]
[1734325958371,0.84827499,221.09,220.99,7.78516811]
[1734325958572,0.84827499,221.09,221.0,23.776884]
[1734325960182,20.0,221.09,221.0,31.56205211]
[1734325960389,20.0,221.09,220.95,5.15798263]
[1734325960390,1.5921,221.1,221.02,23.776884]
[1734325960610,1.5921,221.1,221.04,31.56205211]
[1734325960774,6.4633,221.12,221.05,7.78516811]
[1734325960982,6.4633,221.12,221.06,23.776884]
[1734325961710,6.4633,221.12,221.04,23.776884]
[1734325982315,0.84801362,221.11,221.04,23.776884]
[1734325982513,0.84801362,221.11,221.01,23.776884]
[1734325982715,0.84801362,221.11,220.98,7.78516811]
[1734325984038,0.84801362,221.11,220.99,23.776884]
[1734325984622,0.84801362,221.11,220.99,31.56205211]
[1734325987036,1.5917,221.06,220.99,23.776884]
[1734325987223,7.49692903,221.05,220.91,7.06201699]
[1734325987428,7.49692903,221.05,220.92,12.87305326]
[1734325987642,20.0,221.02,220.91,7.78516811]
[1734325987845,0.84849454,221.01,220.91,7.78516811]
[1734325988050,0.84849454,221.01,220.89,8.66641699]
[1734325988051,0.84849454,221.01,220.89,1.6044]
[1734325988243,0.84849454,221.01,220.91,7.78516811]
[1734325989118,0.84849454,221.01,220.92,23.776884]
[1734325989333,20.0,221.02,220.93,7.78516811]
[1734325989518,20.0,221.02,220.94,23.776884]
[1734325990540,17.9587,221.05,220.94,31.56205211]
[1734325990749,20.0,221.02,220.97,23.776884]
[1734325991929,6.6486,221.05,220.97,31.56205211]
[1734325992130,6.6486,221.05,220.97,23.776884]
[1734325992521,6.6486,221.05,220.96,23.776884]
[1734325993648,6.6486,221.05,220.96,31.56205211]
[1734325997950,6.6486,221.05,220.96,23.776884]
[1734325998162,7.49689322,221.05,220.96,23.776884]
[1734325999236,6.6486,221.05,220.96,23.776884]
[1734326000959,7.49690363,221.05,220.96,23.776884]
[1734326002053,6.6486,221.05,220.96,23.776884]
[1734326002258,6.6486,221.05,220.91,11.3166]
[1734326002259,6.6486,221.05,220.98,23.776884]
[1734326003236,6.6486,221.05,220.98,31.56205211]
[1734326004135,6.6486,221.05,220.98,23.776884]
[1734326008870,6.6486,221.05,220.97,23.776884]
[1734326013969,6.6486,221.05,220.97,31.56205211]
[1734326014967,6.6486,221.05,220.98,7.78516811]
[1734326015176,8.0199,221.11,221.02,7.78516811]
[1734326015352,8.0199,221.11,221.03,23.776884]
[1734326015741,8.86796338,221.11,221.03,23.776884]
[1734326016168,8.86796338,221.11,221.02,23.776884]
[1734326016573,8.86796338,221.11,221.01,23.776884]
[1734326018168,8.86796338,221.11,221.0,23.776884]
[1734326020347,8.86796338,221.11,220.99,23.776884]
[1734326021879,20.0,221.07,220.99,23.776884]
[1734326022049,20.0,221.07,220.95,23.776884]
[1734326022050,0.84828237,221.06,220.95,23.776884]
[1734326022279,0.84828237,221.06,220.95,31.56205211]
[1734326022460,0.84828237,221.06,220.93,5.08788515]
[1734326022461,8.1778,221.05,220.93,5.08788515]
[1734326022769,0.84843219,221.04,220.91,14.8471851]
[1734326022975,0.84843219,221.04,220.92,7.78516811]
[1734326023302,0.84843219,221.04,220.93,7.78516811]
[1734326023687,0.84843219,221.04,220.94,23.776884]
[1734326024287,0.84843219,221.04,220.94,31.56205211]
[1734326025994,0.84843219,221.04,220.94,23.776884]
[1734326026272,20.0,221.02,220.93,23.776884]
[1734326031667,0.84845893,221.01,220.93,23.776884]
[1734326031874,0.84845893,221.01,220.91,23.776884]
[1734326032195,0.84845893,221.01,220.9,7.78516811]
[1734326033083,0.84845893,221.01,220.91,7.78516811]
[1734326033589,0.84845893,221.01,220.92,23.776884]
[1734326035091,20.0,221.02,220.92,31.56205211]
[1734326035266,9.02620427,221.05,220.95,7.78516811]
[1734326035462,8.1778,221.05,220.96,23.776884]
[1734326036889,8.1778,221.05,220.99,23.776884]
[1734326037077,6.6074,221.05,221.0,23.776884]
[1734326037594,8.75130972,221.1,221.0,23.776884]
[1734326039388,8.75130972,221.1,220.96,7.78516811]
[1734326039389,11.3076,221.09,220.96,7.78516811]
[1734326039584,0.84829157,221.08,220.97,23.776884]
[1734326040264,0.84829157,221.08,220.97,31.56205211]
[1734326040480,0.84829157,221.08,220.99,23.776884]
[1734326042376,0.84823096,221.09,220.99,23.776884]
[1734326046987,0.84823096,221.09,220.99,31.56205211]
[1734326048486,0.84823096,221.09,220.99,23.776884]
[1734326056370,6.3091,221.1,221.04,7.78516811]
[1734326056570,7.8988,221.15,221.06,7.78516811]
[1734326056880,7.8988,221.15,221.07,23.776884]
[1734326057907,7.8988,221.15,221.07,31.56205211]
[1734326058912,8.74674553,221.2,221.1,23.776884]
[1734326059419,7.8988,221.2,221.1,23.776884]
[1734326060303,7.8988,221.2,221.1,31.56205211]
[1734326060614,7.8988,221.2,221.11,7.78516811]
[1734326060791,7.8988,221.2,221.12,31.56205211]
[1734326060988,7.8988,221.25,221.15,23.776884]
[1734326062083,0.84753708,221.24,221.13,23.776884]
[1734326063916,20.0,221.22,221.12,23.776884]
[1734326064222,20.0,221.22,221.07,6.72668263]
[1734326064223,0.84774372,221.21,221.11,31.56205211]
[1734326067199,20.0,221.22,221.11,31.56205211]
[1734326067408,20.0,221.22,221.12,7.78516811]
[1734326067624,20.0,221.22,221.13,23.776884]
[1734326069616,0.84771763,221.24,221.13,31.56205211]
[1734326071938,7.8988,221.25,221.16,23.776884]
[1734326072407,7.8988,221.25,221.16,31.56205211]
[1734326072588,7.8988,221.25,221.16,23.776884]
[1734326078121,7.8988,221.25,221.16,31.56205211]
[1734326079202,8.1779,221.3,221.21,23.776884]
[1734326079415,8.1779,221.3,221.22,7.78516811]
[1734326079626,8.1779,221.3,221.23,31.56205211]
[1734326079830,8.1779,221.3,221.24,7.78516811]
[1734326080125,8.1779,221.3,221.23,23.776884]
[1734326080126,0.5327439,221.33,221.26,7.78516811]
[1734326080427,0.5327439,221.33,221.27,31.56205211]
[1734326080632,0.5327439,221.33,221.27,23.776884]
[1734326084403,0.5327439,221.33,221.27,31.56205211]
[1734326085530,0.5327439,221.33,221.29,23.776884]
[1734326085695,0.5327439,221.33,221.29,31.56205211]
[1734326086518,0.5327439,221.33,221.31,23.776884]
[1734326087419,0.5327439,221.33,221.31,31.56205211]
[1734326087619,0.5327439,221.33,221.32,31.56205211]
[1734326089145,0.5327439,221.33,221.32,23.776884]
[1734326089445,0.5327439,221.33,221.32,31.56205211]
[1734326092660,0.5327439,221.33,221.27,5.15798263]
[1734326092812,0.5327439,221.33,221.3,23.776884]
[1734326093015,0.5327439,221.33,221.29,7.78516811]
[1734326094017,0.5327439,221.33,221.3,7.78516811]
[1734326094658,0.5327439,221.33,221.31,23.776884]
[1734326094847,0.5327439,221.33,221.32,7.78516811]
[1734326095055,0.5327439,221.33,221.32,31.56205211]
[1734326096751,0.5327439,221.33,221.32,23.776884]
[1734326097871,0.5327439,221.33,221.32,31.56205211]
[1734326101565,0.5327439,221.33,221.31,23.776884]
[1734326103073,0.5327439,221.33,221.31,31.56205211]
[1734326103265,0.5327439,221.33,221.31,7.78516811]
[1734326103776,0.5327439,221.33,221.32,23.776884]
[1734326104582,0.5327439,221.33,221.32,31.56205211]
[1734326108634,0.5327439,221.33,221.32,23.776884]
[1734326109979,0.5327439,221.33,221.32,31.56205211]
[1734326112882,0.5327439,221.33,221.32,23.776884]
[1734326113046,0.5327439,221.33,221.32,31.56205211]
[1734326114043,0.5327439,221.33,221.32,62.70272455]
[1734326117052,0.5327439,221.33,221.32,73.45414788]
[1734326117053,4.39e-05,221.33,221.32,73.45414788]
[1734326118354,8.64218622,221.52,221.38,23.776884]
[1734326118666,7.7956,221.52,221.42,31.56205211]
[1734326121591,0.84652959,221.51,221.42,31.56205211]
[1734326121964,7.7956,221.52,221.45,7.78516811]
[1734326122264,0.5327439,221.55,221.48,23.776884]
[1734326122476,0.5327439,221.55,221.49,23.776884]
[1734326123591,0.5327439,221.55,221.49,31.56205211]
[1734326127901,0.5327439,221.55,221.52,23.776884]
[1734326128105,0.5327439,221.55,221.53,23.776884]
[1734326128424,0.5327439,221.55,221.53,31.56205211]
[1734326129388,0.5327439,221.55,221.53,23.776884]
[1734326129597,0.5327439,221.55,221.5,23.776884]
[1734326132522,0.5327439,221.55,221.5,31.56205211]
[1734326137032,0.5327439,221.55,221.5,23.776884]
[1734326137532,0.5327439,221.55,221.48,23.776884]
[1734326139010,0.5327439,221.55,221.47,7.78516811]
[1734326139011,6.5361439,221.55,221.47,23.776884]
[1734326139724,6.5361439,221.55,221.47,31.56205211]
[1734326140229,6.5361439,221.55,221.47,23.776884]
[1734326140728,0.8464261,221.54,221.47,23.776884]
[1734326141225,6.5361439,221.55,221.47,23.776884]
[1734326141533,0.84642956,221.54,221.47,23.776884]
[1734326142902,6.5361439,221.55,221.47,31.56205211]
[1734326143105,6.5361439,221.55,221.5,7.78516811]
[1734326143609,6.5361439,221.55,221.51,23.776884]
[1734326146227,0.5327439,221.55,221.51,23.776884]
[1734326146434,0.5327439,221.55,221.53,31.56205211]
[1734326146636,0.5327439,221.55,221.54,31.56205211]
[1734326151216,0.5327439,221.55,221.54,7.78516811]
[1734326152538,0.5327439,221.55,221.54,31.56205211]
[1734326157841,0.5327439,221.55,221.54,23.776884]
[1734326158018,0.5327439,221.55,221.53,7.78516811]
[1734326158219,0.5327439,221.55,221.54,7.78516811]
[1734326159640,0.5327439,221.55,221.54,31.56205211]
[1734326160414,0.5327439,221.55,221.52,7.78516811]
[1734326160616,0.5327439,221.55,221.53,23.776884]
[1734326163341,0.5327439,221.55,221.53,31.56205211]
[1734326166518,0.5327439,221.55,221.54,31.56205211]
[1734326168620,0.5327439,221.55,221.48,5.5934407]
[1734326168944,0.5327439,221.55,221.47,7.78516811]
[1734326169533,0.5327439,221.55,221.42,6.152]
[1734326169534,0.5327439,221.55,221.49,7.78516811]
[1734326170141,0.5327439,221.55,221.5,31.56205211]
[1734326170332,0.5327439,221.55,221.52,23.776884]
[1734326172266,0.5327439,221.55,221.49,7.78516811]
[1734326172559,0.5327439,221.55,221.5,23.776884]
[1734326175253,0.5327439,221.55,221.5,31.56205211]
[1734326175434,0.5327439,221.55,221.52,23.776884]
[1734326176030,0.5327439,221.55,221.51,23.776884]
[1734326177563,0.5327439,221.55,221.5,23.776884]
[1734326180341,0.5327439,221.55,221.47,7.78516811]
[1734326180670,0.5327439,221.55,221.47,23.776884]
[1734326181051,0.5327439,221.55,221.47,31.56205211]
[1734326181254,0.5327439,221.55,221.48,7.78516811]
[1734326181464,0.5327439,221.55,221.49,23.776884]
[1734326181660,0.5327439,221.55,221.5,31.56205211]
[1734326182873,0.5327439,221.55,221.52,23.776884]
[1734326183654,0.5327439,221.55,221.51,23.776884]
[1734326184465,0.5327439,221.55,221.51,31.56205211]
[1734326185044,0.5327439,221.55,221.45,20.0]
[1734326185247,0.5327439,221.55,221.46,7.78516811]
[1734326185749,0.5327439,221.55,221.41,11.2908]
[1734326185953,0.5327439,221.55,221.47,7.78516811]
[1734326186363,0.5327439,221.55,221.48,23.776884]
[1734326188053,0.5327439,221.55,221.47,23.776884]
[1734326191954,0.5327439,221.55,221.47,31.56205211]
[1734326196761,0.84641322,221.54,221.46,23.776884]
[1734326200755,0.84641322,221.54,221.45,23.776884]
[1734326200998,0.5327439,221.55,221.48,31.56205211]
[1734326201192,0.5327439,221.55,221.51,7.78516811]
[1734326201369,0.5327439,221.55,221.53,23.776884]
[1734326201773,0.5327439,221.55,221.52,23.776884]
[1734326202374,0.5327439,221.55,221.53,7.78516811]
[1734326202564,0.5327439,221.55,221.54,23.776884]
[1734326204868,0.5327439,221.55,221.49,23.776884]
[1734326205080,0.5327439,221.55,221.49,31.56205211]
[1734326205596,0.5327439,221.55,221.48,20.0]
[1734326205799,0.5327439,221.55,221.48,7.78516811]
[1734326206506,0.5327439,221.55,221.47,7.78516811]
[1734326207002,0.5327439,221.55,221.44,20.0]
[1734326207302,0.5327439,221.55,221.45,7.78516811]
[1734326208010,0.5327439,221.55,221.4,5.5934407]
[1734326208176,0.5327439,221.55,221.43,7.78516811]
[1734326208376,0.5327439,221.55,221.45,31.56205211]
[1734326210085,0.5327439,221.55,221.45,23.776884]
[1734326210419,0.5327439,221.55,221.47,23.776884]
[1734326212111,0.5327439,221.55,221.47,31.56205211]
[1734326215499,0.5327439,221.55,221.47,23.776884]
[1734326216382,0.5327439,221.55,221.47,31.56205211]
[1734326217007,0.5327439,221.55,221.49,23.776884]
[1734326217388,0.5327439,221.55,221.5,7.78516811]
[1734326217601,0.5327439,221.55,221.51,23.776884]
[1734326220714,0.5327439,221.55,221.53,31.56205211]
[1734326222088,0.5327439,221.55,221.53,23.776884]
[1734326228721,0.5327439,221.55,221.53,31.56205211]
[1734326228917,0.5327439,221.55,221.53,23.776884]
[1734326230225,0.5327439,221.55,221.54,7.78516811]
[1734326230403,0.5327439,221.55,221.54,31.56205211]
[1734326231438,1.78397826,221.7,221.54,31.56205211]
[1734326231439,6.3602,221.71,221.57,20.0]
[1734326231610,6.3602,221.71,221.63,7.78516811]
[1734326232233,6.3602,221.71,221.64,23.776884]
[1734326233025,0.84604277,221.72,221.64,23.776884]
[1734326233337,0.84578239,221.73,221.64,23.776884]
[1734326234918,0.84577313,221.77,221.67,31.56205211]
[1734326235411,19.6996439,221.78,221.69,23.776884]
[1734326235412,8.4270439,221.78,221.69,23.776884]
[1734326235808,8.4270439,221.78,221.71,23.776884]
[1734326236235,8.4270439,221.78,221.71,31.56205211]
[1734326236542,0.5327439,221.78,221.71,23.776884]
[1734326237140,0.5327439,221.78,221.71,31.56205211]
[1734326238738,0.5327439,221.78,221.71,23.776884]
[1734326240135,0.5327439,221.78,221.7,23.776884]
[1734326240512,0.5327439,221.78,221.69,23.776884]
[1734326240916,0.5327439,221.78,221.69,31.56205211]
[1734326241128,0.5327439,221.78,221.71,23.776884]
[1734326241733,4.39e-05,221.78,221.75,27.78516811]
[1734326242048,0.5327439,222.0,221.75,27.78516811]
[1734326242049,0.84486898,221.94,221.82,23.776884]
[1734326242349,0.84493024,221.99,221.82,23.776884]
[1734326243409,11.2622,221.98,221.82,23.776884]
[1734326243610,0.84503625,221.97,221.82,23.776884]
[1734326244207,20.0,221.95,221.82,23.776884]
[1734326244417,12.1098899,221.94,221.82,23.776884]
[1734326244855,20.0,221.91,221.76,13.37172784]
[1734326245163,0.84518551,221.9,221.79,23.776884]
[1734326246157,0.84516481,221.89,221.79,23.776884]
[1734326247056,0.84517787,221.88,221.79,23.776884]
[1734326247359,0.84517784,221.9,221.79,23.776884]
[1734326247765,0.84517784,221.9,221.79,7.78516811]
[1734326248130,0.84517784,221.9,221.8,23.776884]
[1734326249628,0.84517784,221.9,221.8,31.56205211]
[1734326251254,0.84517784,221.9,221.8,23.776884]
[1734326253458,5.0,221.96,221.87,23.776884]
[1734326253459,11.2641,221.95,221.87,23.776884]
[1734326253633,12.10902177,221.95,221.87,23.776884]
[1734326253961,12.10902177,221.95,221.85,23.776884]
[1734326254123,12.10902177,221.95,221.81,7.61796581]
[1734326254452,12.10902177,221.95,221.52,44.31700896]
[1734326254453,12.10902177,221.95,221.82,23.776884]
[1734326254658,12.10902177,221.95,221.76,20.0]
[1734326254849,12.10902177,221.95,221.77,7.78516811]
[1734326255046,17.10902177,221.95,221.78,7.78516811]
[1734326255232,20.0,221.92,221.79,7.78516811]
[1734326255558,0.84511479,221.91,221.8,7.78516811]
[1734326255965,0.84511479,221.91,221.81,7.78516811]
[1734326256139,31.2654,221.92,221.82,7.78516811]
[1734326256468,20.84504185,221.94,221.84,31.56205211]
[1734326259050,20.84504185,221.94,221.84,23.776884]
[1734326261838,11.2648,221.93,221.79,7.78516811]
[1734326262054,0.84513314,221.92,221.79,7.78516811]
[1734326262355,0.84513314,221.92,221.81,7.78516811]
[1734326263760,0.84513314,221.92,221.81,23.776884]
[1734326264265,0.84513314,221.92,221.8,7.78516811]
[1734326264266,11.2658,221.91,221.8,23.776884]
[1734326264425,0.84518933,221.9,221.79,23.776884]
[1734326264761,20.0,221.86,221.68,1.575]
[1734326264960,0.84546691,221.85,221.69,7.78516811]
[1734326265336,0.84546691,221.85,221.71,7.78516811]
[1734326266046,11.2693,221.84,221.72,23.776884]
[1734326266248,11.2693,221.84,221.74,23.776884]
[1734326266451,11.2693,221.84,221.74,31.56205211]
[1734326266747,0.84528661,221.83,221.74,23.776884]
[1734326267129,11.2693,221.84,221.74,23.776884]
[1734326267333,11.2693,221.84,221.74,31.56205211]
[1734326267540,0.84532271,221.83,221.74,31.56205211]
[1734326267744,12.114648,221.84,221.74,23.776884]
[1734326268045,0.845348,221.84,221.76,23.776884]
[1734326268444,0.8452886,221.87,221.76,23.776884]
[1734326269462,0.8452886,221.87,221.76,31.56205211]